bitfinex/quotes_SOLUSD_20240628
["timestamp","ask_amount","ask_price","bid_price","bid_amount"]
[1719601046125,0.68795767,142.01,141.97,16.72]
[1719601046833,0.68795767,142.02,141.97,46.72]
[1719601048751,0.68795767,142.02,141.98,16.72]
[1719601049056,0.68795767,142.02,141.99,16.72]
[1719601049612,7.11145767,142.03,141.99,16.72]
[1719601049811,1.53414557,142.05,141.98,30.0]
[1719601050016,0.68795767,142.04,142.01,16.72]
[1719601050214,0.68795767,142.04,142.01,46.72]
[1719601052133,0.68795767,142.04,142.01,30.0]
[1719601052742,17.40795767,142.04,141.98,16.72]
[1719601052913,16.72,142.03,141.99,30.0]
[1719601053113,16.72,142.03,141.98,16.72]
[1719601053431,17.40795767,142.04,141.96,16.4473]
[1719601053628,17.40795767,142.04,141.99,16.72]
[1719601054646,17.40795767,142.04,141.96,16.4473]
[1719601054944,0.68795767,142.04,141.99,16.72]
[1719601055442,37.5661879,142.05,141.97,30.0]
[1719601055443,20.8461879,142.05,142.0,0.85854324]
[1719601055642,0.8461879,142.05,142.01,16.72]
[1719601055822,1.53414557,142.05,142.01,16.72]
[1719601059327,18.25414557,142.05,141.97,30.0]
[1719601059662,18.25414557,142.05,142.0,16.72]
[1719601059663,20.0,142.04,142.0,16.72]
[1719601060329,21.53414557,142.05,142.0,16.72]
[1719601061158,1.53414557,142.05,142.0,16.72]
[1719601064928,1.53414557,142.05,142.01,16.72]
[1719601065133,1.53414557,142.05,142.0,16.72]
[1719601066972,1.53414557,142.05,142.01,16.72]
[1719601067470,0.8461879,142.05,142.03,16.72]
[1719601067956,0.8461879,142.05,142.02,16.72]
[1719601069336,0.8461879,142.05,142.01,16.72]
[1719601071442,0.68795767,142.04,142.01,16.72]
[1719601072461,0.68795767,142.04,141.96,16.4473]
[1719601072771,0.68795767,142.04,142.0,16.72]
[1719601072948,20.68795767,142.04,142.0,16.72]
[1719601073440,20.68795767,142.04,142.01,16.72]
[1719601073638,0.68795767,142.03,142.01,16.72]
[1719601073865,0.68795767,142.03,141.97,30.0]
[1719601074065,0.68795767,142.03,142.0,16.72]
[1719601074745,0.68795767,142.04,142.0,16.72]
[1719601079644,0.68795767,142.04,141.96,16.4473]
[1719601079859,0.68795767,142.04,142.0,16.72]
[1719601080972,0.68795767,142.04,141.96,90.3714]
[1719601081154,0.68795767,142.04,142.0,16.72]
[1719601083170,16.72,142.01,141.92,33.1665]
[1719601083373,6.1841,142.03,141.9,7.047]
[1719601083374,0.68795767,142.0,141.9,7.047]
[1719601083586,20.68795767,142.0,141.93,16.72]
[1719601083752,20.68795767,142.0,141.9,7.047]
[1719601083947,20.68795767,142.0,141.93,16.72]
[1719601084270,94.2941,142.03,141.93,16.72]
[1719601084271,0.68795767,141.99,141.93,16.72]
[1719601085068,0.68795767,141.99,141.9,7.047]
[1719601085267,0.68795767,141.98,141.89,30.28515188]
[1719601085471,16.72,141.97,141.92,16.72]
[1719601085662,20.68795767,141.96,141.92,16.72]
[1719601085861,0.68795767,141.95,141.92,16.72]
[1719601086468,0.68795767,141.95,141.91,16.72]
[1719601087079,0.68795767,141.95,141.92,16.72]
[1719601088277,0.68795767,141.95,141.86,17.6224]
[1719601088480,17.40795767,141.95,141.89,16.72]
[1719601088783,20.0,141.94,141.89,16.72]
[1719601088956,0.68795767,141.93,141.89,16.72]
[1719601089156,0.68795767,141.93,141.9,16.72]
[1719601091077,0.68795767,141.94,141.91,16.72]
[1719601091457,20.0,141.95,141.93,16.72]
[1719601091779,20.68795767,141.97,141.93,16.72]
[1719601091967,20.68795767,141.97,141.92,16.72]
[1719601092352,20.68795767,141.97,141.89,16.72]
[1719601092564,37.40795767,141.97,141.89,66.88]
[1719601093151,37.40795767,141.97,141.91,16.72]
[1719601093657,37.40795767,141.97,141.92,16.72]
[1719601094878,37.40795767,141.97,141.85,38.9108626]
[1719601095182,37.40795767,141.97,141.92,16.72]
[1719601095369,37.40795767,141.97,141.91,16.72]
[1719601095685,20.68795767,141.97,141.93,16.72]
[1719601097892,37.40795767,141.97,141.92,16.72]
[1719601100295,20.0,141.97,141.92,16.72]
[1719601100493,20.68795767,141.97,141.93,16.72]
[1719601102885,20.68795767,141.97,141.92,16.72]
[1719601114113,37.40795767,141.97,141.91,16.72]
[1719601114283,16.72,141.96,141.9,16.72]
[1719601114484,0.68795767,141.95,141.9,16.72]
[1719601117410,0.68795767,141.95,141.91,16.72]
[1719601117708,0.68795767,141.96,141.91,16.72]
[1719601117903,20.0,141.97,141.94,16.72]
[1719601118208,20.0,141.97,141.9,24.6647]
[1719601118392,20.68795767,141.97,141.93,16.72]
[1719601120220,20.68795767,141.97,141.89,66.88]
[1719601120399,20.68795767,141.97,141.92,16.72]
[1719601128431,20.0,141.97,141.94,16.72]
[1719601128598,20.68795767,141.98,141.94,16.72]
[1719601128920,0.68795767,142.0,141.97,16.72]
[1719601129222,0.68795767,142.01,141.97,16.72]
[1719601130627,20.68795767,142.01,141.97,16.72]
[1719601133307,37.40795767,142.01,141.95,16.72]
[1719601135329,37.40795767,142.01,141.91,23.4395]
[1719601135533,37.40795767,142.01,141.95,16.72]
[1719601139226,20.68795767,142.01,141.91,16.393]
[1719601139415,16.72,141.99,141.94,16.72]
[1719601139731,0.68795767,141.98,141.94,16.72]
[1719601140430,16.72,141.97,141.92,16.72]
[1719601140627,20.68795767,141.96,141.93,16.72]
[1719601140829,16.72,141.98,141.92,16.72]
[1719601141125,4.37009079,142.0,141.89,84.4989]
[1719601141126,20.0,141.97,141.89,84.4989]
[1719601141305,0.68795767,141.99,141.94,16.72]
[1719601141625,20.68795767,141.99,141.95,16.72]
[1719601141822,0.68795767,141.98,141.95,16.72]
[1719601142417,0.68795767,141.98,141.9,7.047]
[1719601142725,0.68795767,141.98,141.95,16.72]
[1719601143107,0.68795767,141.98,141.94,16.72]
[1719601143630,0.68795767,141.98,141.93,16.72]
[1719601145427,0.68795767,141.98,141.9,7.064]
[1719601145617,0.68795767,141.98,141.94,16.72]
[1719601150333,0.68795767,141.98,141.93,16.72]
[1719601151131,17.40795767,141.98,141.93,16.72]
[1719601152230,0.68795767,141.98,141.93,16.72]
[1719601153516,20.68795767,141.98,141.93,16.72]
[1719601154135,31.28763312,142.02,141.96,16.72]
[1719601154136,0.68795767,142.01,141.96,16.72]
[1719601154328,20.68795767,142.01,141.97,16.72]
[1719601156332,20.68795767,142.01,141.96,16.72]
[1719601157523,37.40795767,142.01,141.95,16.72]
[1719601159323,16.72,142.0,141.95,16.72]
[1719601159521,0.68795767,141.99,141.95,16.72]
[1719601159938,20.68795767,141.99,141.94,16.72]
[1719601160144,0.68795767,141.98,141.94,16.72]
[1719601160356,0.68795767,141.98,141.89,66.88]
[1719601160541,0.68795767,141.98,141.93,16.72]
[1719601162947,20.68795767,141.98,141.93,16.72]
[1719601165329,20.0,141.98,141.93,16.72]
[1719601165544,20.0,141.98,141.95,16.72]
[1719601165849,20.68795767,141.99,141.95,16.72]
[1719601168443,20.0,141.99,141.96,0.91082254]
[1719601168739,16.72,142.01,141.96,0.91082254]
[1719601168740,20.0,142.0,141.96,17.63082254]
[1719601168926,20.68795767,142.0,141.96,16.72]
[1719601169345,20.68795767,142.0,141.95,16.72]
[1719601169556,37.40795767,142.0,141.95,16.72]
[1719601170155,37.40795767,142.0,141.94,16.72]
[1719601170443,37.40795767,142.0,141.91,16.72]
[1719601170444,3.68213312,141.98,141.91,16.72]
[1719601170741,17.40795767,141.97,141.92,16.72]
[1719601170949,20.0,141.96,141.92,16.72]
[1719601171854,0.68795767,141.97,141.92,16.72]
[1719601171855,20.68795767,141.97,141.92,16.72]
[1719601172548,37.40795767,141.97,141.92,16.72]
[1719601174041,37.40795767,141.97,141.89,16.72]
[1719601174345,16.72,141.96,141.9,16.72]
[1719601174551,0.68795767,141.95,141.9,16.72]
[1719601175329,37.40795767,141.95,141.9,16.72]
[1719601175554,36.72,141.94,141.89,16.72]
[1719601175740,0.68795767,141.93,141.86,7.064]
[1719601175943,37.40795767,141.93,141.87,16.72]
[1719601176131,0.68795767,141.92,141.87,16.72]
[1719601177336,0.68795767,141.92,141.88,16.72]
[1719601177539,20.68795767,141.93,141.9,16.72]
[1719601177746,20.0,141.93,141.9,16.72]
[1719601180547,20.0,141.93,141.89,16.72]
[1719601181667,0.68795767,141.92,141.85,27.45512471]
[1719601181855,0.68795767,141.92,141.88,16.72]
[1719601183251,0.68795767,141.92,141.85,21.43542471]
[1719601183439,0.68795767,141.92,141.88,16.72]
[1719601184163,0.68795767,141.92,141.89,16.72]
[1719601184540,20.68795767,141.93,141.89,16.72]
[1719601184738,20.68795767,141.93,141.9,16.72]
[1719601185660,20.68795767,141.93,141.89,16.72]
[1719601186452,20.68795767,141.93,141.88,16.72]
[1719601189235,20.0,141.93,141.88,16.72]
[1719601189435,20.68795767,141.93,141.88,16.72]
[1719601193762,20.0,141.93,141.88,16.72]
[1719601194261,20.68795767,141.93,141.88,16.72]
[1719601195563,20.68795767,141.93,141.89,18.12757304]
[1719601195858,20.68795767,141.93,141.89,16.72]
[1719601197470,20.0,141.93,141.89,16.72]
[1719601197672,20.68795767,141.93,141.89,16.72]
[1719601198059,20.0,141.93,141.9,1.40754619]
[1719601198247,20.68795767,141.95,141.92,16.72]
[1719601198447,20.0,141.94,141.92,16.72]
[1719601198654,0.68795767,141.95,141.91,16.72]
[1719601199458,17.40795767,141.95,141.9,16.72]
[1719601199767,0.68795767,141.96,141.87,7.0482]
[1719601199975,0.68795767,141.97,141.93,16.72]
[1719601200583,0.68795767,141.97,141.86,23.8501]
[1719601200861,17.40795767,141.97,141.91,16.72]
[1719601201040,17.40795767,141.97,141.92,16.72]
[1719601201248,20.0,141.96,141.91,16.72]
[1719601201439,0.68795767,141.95,141.86,6.2274]
[1719601201657,17.40795767,141.95,141.86,6.2274]
[1719601201880,22.79,141.93,141.85,21.43542471]
[1719601202085,20.68795767,141.92,141.86,16.72]
[1719601202251,16.72,141.91,141.82,6.2057]
[1719601202457,37.40795767,141.9,141.82,6.2057]
[1719601202669,0.68795767,141.89,141.85,16.72]
[1719601203264,0.68795767,141.89,141.84,16.72]
[1719601203460,20.68795767,141.92,141.88,16.72]
[1719601203667,20.0,141.92,141.9,16.72]
[1719601203877,6.07,141.93,141.9,16.72]
[1719601204469,6.07,141.93,141.84,7.05]
[1719601204758,6.07,141.93,141.9,16.72]
[1719601205359,0.68795767,141.94,141.9,16.72]
[1719601205563,20.68795767,141.94,141.9,16.72]
[1719601205780,20.0,141.94,141.9,16.72]
[1719601206088,0.68795767,141.93,141.89,16.72]
[1719601206298,17.40795767,141.93,141.86,15.8433]
[1719601206470,0.68795767,141.92,141.88,16.72]
[1719601206667,17.40795767,141.93,141.88,16.72]
[1719601206967,0.68795767,141.93,141.89,16.72]
[1719601207367,20.68795767,141.94,141.9,16.72]
[1719601207563,20.68795767,141.94,141.86,22.8924]
[1719601207764,20.68795767,141.95,141.91,16.72]
[1719601207975,23.44635767,141.97,141.89,16.72]
[1719601208172,6.72635767,141.97,141.93,16.72]
[1719601208372,6.72635767,141.97,141.89,16.72]
[1719601208563,6.72635767,141.97,141.92,16.72]
[1719601208969,6.0384,141.97,141.94,16.72]
[1719601209879,20.0,141.96,141.94,16.72]
[1719601210898,6.0607,142.01,141.95,16.72]
[1719601211184,4.90932039,142.04,141.92,7.064]
[1719601211185,3.68869537,142.04,141.99,16.72]
[1719601211384,0.68795767,142.03,141.99,16.72]
[1719601211699,0.68795767,142.03,141.98,16.72]
[1719601212059,0.68795767,142.03,141.97,1.40837286]
[1719601212485,20.0,142.03,141.97,16.72]
[1719601212671,16.72,142.03,141.93,6.0244]
[1719601212868,16.72,142.02,141.97,16.72]
[1719601213284,31.79558327,142.05,141.91,16.3105]
[1719601213601,16.72,141.97,141.92,16.72]
[1719601213765,37.40795767,141.96,141.91,16.72]
[1719601214088,0.68795767,141.95,141.91,16.72]
[1719601214965,20.0,141.96,141.92,16.72]
[1719601215171,37.40795767,141.98,141.92,16.72]
[1719601216180,37.40795767,141.98,141.91,1.40902441]
[1719601216567,37.40795767,141.98,141.89,73.9275]
[1719601216568,20.0,141.98,141.89,73.9275]
[1719601216770,20.0,141.98,141.94,16.72]
[1719601217102,20.68795767,141.98,141.94,16.72]
[1719601217297,20.68795767,141.98,141.89,73.9275]
[1719601217298,20.0,141.98,141.96,16.72]
[1719601217473,6.5754,141.99,141.96,16.72]
[1719601217875,0.68795767,142.0,141.96,16.72]
[1719601218096,20.68795767,142.0,141.96,16.72]
[1719601218269,20.68795767,142.0,141.88,7.064]
[1719601218468,16.72,141.98,141.87,39.8531]
[1719601218677,20.68795767,141.97,141.87,73.3031]
[1719601218875,0.68795767,141.99,141.87,73.3031]
[1719601219788,0.68795767,141.98,141.87,73.3031]
[1719601220710,0.68795767,141.98,141.87,48.6339]
[1719601220995,6.4319,141.97,141.87,15.1839]
[1719601221199,20.68795767,141.96,141.87,15.1839]
[1719601221403,0.68795767,141.95,141.87,15.1839]
[1719601221700,0.68795767,141.95,141.84,58.1385]
[1719601221701,0.68795767,141.95,141.84,39.02176162]
[1719601222509,0.68795767,141.95,141.84,46.07186162]
[1719601222986,0.68795767,141.95,141.88,7.048]
[1719601223175,20.68795767,141.96,141.89,1.40906987]
[1719601223375,20.68795767,141.96,141.9,1.40908573]
[1719601223674,0.68795767,141.96,141.9,1.40908573]
[1719601224713,0.68795767,141.96,141.88,15.5692]
[1719601224917,20.68795767,141.96,141.88,15.5692]
[1719601225225,20.0,141.95,141.84,79.05096162]
[1719601225400,0.68795767,141.94,141.84,79.06496162]
[1719601225598,0.68795767,141.94,141.84,73.4793]
[1719601225915,0.68795767,141.94,141.84,66.4292]
[1719601226233,0.68795767,141.94,141.84,15.3546]
[1719601226407,6.5752,141.93,141.81,24.6797]
[1719601226605,20.68795767,141.92,141.81,24.6797]
[1719601227226,20.68795767,141.92,141.81,31.7437]
[1719601227531,20.68795767,141.92,141.8,49.7112]
[1719601227904,20.68795767,141.92,141.8,56.7752]
[1719601228105,20.68795767,141.92,141.8,56.7631]
[1719601228403,20.68795767,141.92,141.79,7.0524]
[1719601228404,41.88795767,141.92,141.79,7.0524]
[1719601228606,75.33795767,141.92,141.78,24.685]
[1719601229913,21.2,141.9,141.77,56.7309]
[1719601230115,20.68795767,141.89,141.77,56.7309]
[1719601230319,41.88795767,141.89,141.77,16.2273]
[1719601230807,41.88795767,141.89,141.77,39.41654899]
[1719601231410,20.68795767,141.89,141.77,39.41654899]
[1719601231797,0.68795767,141.89,141.79,7.0525]
[1719601232500,0.68795767,141.89,141.79,14.1165]
[1719601233734,0.68795767,141.89,141.8,7.064]
[1719601235116,0.68795767,141.89,141.78,14.117]
[1719601237015,0.68795767,141.89,141.8,7.0521]
[1719601238049,0.68795767,141.89,141.79,24.6839]
[1719601238248,0.68795767,141.89,141.78,7.064]
[1719601239465,0.68795767,141.89,141.79,0.51710962]
[1719601240552,0.68795767,141.89,141.78,7.064]
[1719601242346,6.6098,141.88,141.75,46.9661]
[1719601242526,20.68795767,141.87,141.75,40.514]
[1719601243827,20.68795767,141.87,141.75,46.23122222]
[1719601244028,20.68795767,141.87,141.75,53.28572222]
[1719601244850,20.68795767,141.87,141.75,46.23122222]
[1719601245029,20.68795767,141.87,141.78,7.0531]
[1719601245228,20.68795767,141.87,141.77,17.634]
[1719601245441,20.68795767,141.87,141.78,7.064]
[1719601246537,20.68795767,141.87,141.79,1.41008483]
[1719601246743,20.68795767,141.87,141.8,1.40998538]
[1719601250569,20.68795767,141.87,141.79,7.064]
[1719601251445,20.68795767,141.87,141.77,7.064]
[1719601251860,20.0,141.87,141.79,7.064]
[1719601252167,20.0,141.87,141.8,1.40888603]
[1719601252643,20.68795767,141.87,141.79,7.064]
[1719601253944,20.68795767,141.87,141.78,33.45]
[1719601258166,20.68795767,141.87,141.78,40.5031]
[1719601259449,20.0,141.87,141.79,17.6314]
[1719601259651,20.0,141.87,141.8,7.0521]
[1719601259973,20.68795767,141.87,141.8,7.0521]
[1719601260270,20.68795767,141.87,141.81,0.51666437]
[1719601260472,20.68795767,141.87,141.81,0.83415772]
[1719601260675,20.68795767,141.87,141.82,0.8340989]
[1719601261643,20.68795767,141.87,141.83,0.83482893]
[1719601261644,20.0,141.87,141.83,0.83482893]
[1719601262044,20.0,141.87,141.81,24.6804]
[1719601262273,20.0,141.87,141.81,24.6803]
[1719601262476,20.0,141.87,141.81,33.45]
[1719601263368,0.68795767,141.86,141.76,13.5576]
[1719601263584,0.68795767,141.86,141.77,7.0536]
[1719601263745,0.68795767,141.86,141.78,33.45]
[1719601264167,20.0,141.87,141.78,33.45]
[1719601264758,20.0,141.87,141.83,16.75]
[1719601264942,20.68795767,141.87,141.78,7.0531]
[1719601265145,20.68795767,141.87,141.82,16.75]
[1719601266188,20.68795767,141.87,141.83,16.75]
[1719601266350,37.43795767,141.87,141.77,24.6873]
[1719601266667,37.43795767,141.87,141.82,16.75]
[1719601267073,37.43795767,141.87,141.77,24.6873]
[1719601267248,37.43795767,141.87,141.81,16.75]
[1719601267954,37.43795767,141.87,141.77,24.6873]
[1719601268153,37.43795767,141.87,141.81,16.75]
[1719601268375,37.43795767,141.87,141.75,72.71722222]
[1719601268376,6.3263,141.86,141.75,5.71722222]
[1719601268677,6.3263,141.86,141.77,16.75]
[1719601268678,16.75,141.82,141.77,16.75]
[1719601268851,20.68795767,141.81,141.77,16.75]
[1719601269053,20.68795767,141.81,141.72,13.5969]
[1719601269251,43.76425767,141.81,141.76,16.75]
[1719601269472,0.68795767,141.8,141.76,16.75]
[1719601270677,0.68795767,141.8,141.73,7.0556]
[1719601271584,0.68795767,141.8,141.71,67.7559]
[1719601271779,0.68795767,141.8,141.71,33.52]
[1719601271974,0.68795767,141.79,141.68,56.88376354]
[1719601272164,0.68795767,141.79,141.68,63.94136354]
[1719601272479,0.68795767,141.79,141.68,56.88376354]
[1719601272657,0.68795767,141.79,141.7,7.0567]
[1719601273573,0.68795767,141.79,141.69,7.0575]
[1719601275274,0.68795767,141.79,141.7,7.0571]
[1719601275873,0.68795767,141.79,141.69,7.0574]
[1719601278381,6.4851,141.78,141.68,58.2225]
[1719601278676,6.4851,141.76,141.65,84.5538]
[1719601278983,20.68795767,141.75,141.65,26.3263]
[1719601279166,20.68795767,141.75,141.65,7.0595]
[1719601279786,20.68795767,141.75,141.64,17.6501]
[1719601279787,20.68795767,141.75,141.64,24.7101]
[1719601280465,20.68795767,141.75,141.65,7.0596]
[1719601280677,20.68795767,141.75,141.64,17.6501]
[1719601280876,20.68795767,141.75,141.64,24.71]
[1719601282293,20.68795767,141.75,141.63,23.6957]
[1719601283393,6.1789,141.74,141.63,7.0605]
[1719601283693,20.68795767,141.73,141.63,7.0605]
[1719601284496,20.68795767,141.73,141.62,33.52]
[1719601284803,6.4925,141.72,141.62,33.52]
[1719601284999,20.68795767,141.71,141.62,33.52]
[1719601285197,0.68795767,141.7,141.62,33.52]
[1719601285976,20.68795767,141.71,141.62,51.1726]
[1719601286178,20.68795767,141.71,141.64,7.0599]
[1719601286401,20.0,141.71,141.65,7.0596]
[1719601286582,6.4925,141.72,141.65,7.0596]
[1719601286894,6.4925,141.72,141.64,24.7102]
[1719601287096,0.68795767,141.71,141.62,33.52]
[1719601287282,0.68795767,141.71,141.61,51.173]
[1719601287682,0.68795767,141.71,141.61,58.2344]
[1719601287877,20.68795767,141.71,141.61,51.173]
[1719601288076,6.4925,141.72,141.61,51.173]
[1719601288280,20.68795767,141.71,141.61,51.173]
[1719601288804,20.68795767,141.71,141.63,7.0605]
[1719601289488,0.68795767,141.7,141.63,7.0605]
[1719601290106,0.68795767,141.7,141.62,7.0611]
[1719601290290,0.68795767,141.7,141.61,58.2344]
[1719601291791,0.68795767,141.7,141.62,7.061]
[1719601292590,16.79,141.69,141.63,16.79]
[1719601293585,0.68795767,141.7,141.63,16.79]
[1719601293789,16.79,141.69,141.63,16.79]
[1719601294704,20.0,141.71,141.65,16.79]
[1719601294887,23.2825,141.72,141.67,16.79]
[1719601295888,16.79,141.71,141.66,16.79]
[1719601297709,6.4925,141.72,141.65,17.6487]
[1719601297895,6.4925,141.72,141.7,16.79]
[1719601298096,23.0537,141.75,141.7,16.79]
[1719601298381,6.2637,141.75,141.71,1.4111407]
[1719601298909,6.95165767,141.75,141.71,1.4111407]
[1719601299109,20.0,141.74,141.71,1.4111407]
[1719601299413,6.2637,141.75,141.71,1.4111407]
[1719601300488,6.2637,141.75,141.71,18.2011407]
[1719601300686,6.3219,141.78,141.73,16.79]
[1719601300889,23.1119,141.78,141.74,1.41080706]
[1719601301206,6.3219,141.78,141.74,18.20080706]
[1719601301597,6.3219,141.78,141.74,25.27280706]
[1719601301805,6.3219,141.78,141.74,23.862]
[1719601302686,6.3219,141.78,141.73,23.862]
[1719601302957,0.68795767,141.77,141.73,23.862]
[1719601303089,17.47795767,141.77,141.72,16.79]
[1719601303590,16.79,141.77,141.72,16.79]
[1719601303789,23.1119,141.78,141.73,16.79]
[1719601304002,23.1119,141.78,141.74,0.56900407]
[1719601304208,6.3219,141.78,141.74,0.56900407]
[1719601304596,6.3219,141.78,141.74,0.56898305]
[1719601306508,6.3219,141.78,141.74,0.56898306]
[1719601308203,6.3219,141.78,141.73,16.79]
[1719601308524,23.1119,141.78,141.73,16.79]
[1719601311533,6.3219,141.78,141.73,16.79]
[1719601311825,6.3219,141.78,141.74,0.85958567]
[1719601313202,6.4199,141.81,141.75,0.85952508]
[1719601313417,6.4199,141.81,141.77,16.79]
[1719601313719,6.4199,141.81,141.75,0.85952508]
[1719601313720,23.2099,141.84,141.78,18.20028009]
[1719601314127,23.2099,141.84,141.78,8.48228009]
[1719601314422,23.2099,141.84,141.79,16.79]
[1719601314606,23.2099,141.84,141.8,1.41008117]
[1719601315502,20.0,141.83,141.8,1.41008117]
[1719601315701,20.0,141.83,141.79,16.79]
[1719601315915,37.47795767,141.83,141.78,16.79]
[1719601316419,16.79,141.82,141.77,23.862]
[1719601318128,36.79,141.83,141.78,16.79]
[1719601318508,20.0,141.83,141.78,16.79]
[1719601319626,36.79,141.83,141.78,16.79]
[1719601320531,16.79,141.81,141.72,6.4199]
[1719601320829,16.79,141.8,141.75,16.79]
[1719601321003,16.79,141.81,141.75,16.79]
[1719601321319,36.79,141.83,141.78,16.79]
[1719601321517,36.79,141.83,141.78,23.862]
[1719601322026,20.0,141.83,141.78,23.862]
[1719601322528,36.79,141.83,141.78,23.862]
[1719601322726,16.79,141.82,141.77,23.862]
[1719601322942,36.79,141.81,141.76,16.79]
[1719601323129,16.79,141.8,141.75,16.79]
[1719601323309,16.79,141.79,141.71,7.0563]
[1719601323512,16.79,141.79,141.74,16.79]
[1719601323721,16.79,141.79,141.74,23.862]
[1719601323920,16.79,141.8,141.75,16.79]
[1719601324235,20.0,141.81,141.76,16.79]
[1719601324538,20.0,141.81,141.77,16.79]
[1719601326135,20.0,141.81,141.76,23.862]
[1719601326338,36.79,141.81,141.76,23.862]
[1719601328614,36.79,141.81,141.71,5.75895775]
[1719601328812,16.79,141.8,141.75,16.79]
[1719601329209,36.79,141.81,141.75,16.79]
[1719601329744,36.79,141.81,141.75,23.862]
[1719601330845,36.79,141.81,141.76,16.79]
[1719601331138,20.0,141.81,141.78,16.79]
[1719601331326,20.0,141.82,141.78,16.79]
[1719601332145,16.79,141.81,141.76,16.79]
[1719601333336,16.79,141.81,141.76,23.862]
[1719601334419,16.79,141.8,141.75,23.862]
[1719601335038,16.79,141.79,141.73,16.79]
[1719601335238,16.79,141.79,141.71,17.641]
[1719601335239,16.79,141.78,141.71,17.641]
[1719601335412,16.79,141.78,141.72,23.862]
[1719601336135,16.79,141.76,141.69,7.0575]
[1719601336318,16.79,141.75,141.7,16.79]
[1719601336509,16.79,141.75,141.7,23.862]
[1719601336712,16.79,141.75,141.69,16.79]
[1719601337620,16.79,141.75,141.69,30.9195]
[1719601337938,16.79,141.75,141.7,16.79]
[1719601338432,16.79,141.76,141.7,23.862]
[1719601338940,16.79,141.76,141.68,7.058]
[1719601339142,16.79,141.76,141.7,16.79]
[1719601339746,16.79,141.76,141.7,23.862]
[1719601340122,16.79,141.75,141.7,23.862]
[1719601340436,0.68795767,141.78,141.68,7.058]
[1719601340437,16.79,141.74,141.68,7.058]
[1719601340613,16.79,141.74,141.69,22.862]
[1719601340818,16.79,141.72,141.67,5.5584093]
[1719601341021,16.79,141.72,141.67,16.79]
[1719601341222,16.79,141.72,141.66,15.6985]
[1719601341427,16.79,141.69,141.64,16.79]
[1719601341640,16.79,141.69,141.64,7.072]
[1719601341837,16.79,141.68,141.63,16.79]
[1719601342016,16.79,141.68,141.62,22.6256]
[1719601342217,16.79,141.68,141.62,39.4156]
[1719601342729,0.68795767,141.71,141.62,22.6256]
[1719601343057,20.68795767,141.72,141.62,22.6256]
[1719601343245,20.68795767,141.72,141.63,17.6507]
[1719601343614,20.0,141.73,141.63,17.6507]
[1719601343823,0.68795767,141.72,141.63,17.6507]
[1719601344041,0.68795767,141.72,141.65,7.0595]
[1719601345648,20.68795767,141.73,141.64,7.0599]
[1719601346421,20.0,141.73,141.63,117.6507]
[1719601346631,6.6245,141.74,141.66,7.0591]
[1719601347022,6.6245,141.74,141.67,8.46754069]
[1719601347227,6.6245,141.74,141.66,7.059]
[1719601349343,6.6245,141.74,141.65,24.708]
[1719601350135,6.6245,141.74,141.62,33.2164]
[1719601350136,0.68795767,141.73,141.62,33.2164]
[1719601350451,20.68795767,141.73,141.64,7.06]
[1719601350630,20.68795767,141.73,141.63,7.0605]
[1719601351029,20.68795767,141.73,141.64,7.06]
[1719601351240,20.0,141.73,141.66,7.059]
[1719601351432,6.6245,141.74,141.67,7.0585]